fUSD/lending_fUSD_20250410
["ID","MTS","AMOUNT","RATE_DAILY","PERIOD"]
[357667177,1744298150546,1000.0,0.00043809,30]
[357667178,1744298151234,1000.0,0.00043809,30]
[357667179,1744298151701,1000.0,0.00043809,30]
[357667180,1744298152761,1000.0,0.00043809,30]
[357667181,1744298153354,1000.0,0.00043809,30]
[357667182,1744298154404,1000.0,0.00043809,30]
[357667183,1744298154970,1000.0,0.00043809,30]
[357667184,1744298155598,1000.0,0.00043809,30]
[357667185,1744298156185,1000.0,0.00043809,30]
[357667186,1744298156814,1000.0,0.00043809,30]
[357667187,1744298157396,1000.0,0.00043809,30]
[357667188,1744298157990,1000.0,0.00043809,30]
[357667189,1744298158581,1000.0,0.00043809,30]
[357667190,1744298159167,1000.0,0.00043809,30]
[357667191,1744298159960,1000.0,0.00043809,30]
[357667192,1744298160956,1000.0,0.00043809,30]
[357667193,1744298161941,1000.0,0.00043809,30]
[357667194,1744298162802,1000.0,0.00043809,30]
[357667195,1744298163799,1000.0,0.00043809,30]
[357667196,1744298164374,1000.0,0.00043809,30]
[357667197,1744298164960,214.00244918,0.00043809,30]
[357667198,1744298236564,200.0,0.00043809,30]
[357667199,1744298237735,207.4,0.00043809,30]
[357667200,1744298238475,215.0738,0.00043809,30]
[357667201,1744298239107,223.0315306,0.00043809,30]
[357667202,1744298239827,231.28369723,0.00043809,30]
[357667203,1744298240456,239.84119403,0.00043809,30]
[357667204,1744298241124,248.71531821,0.00043809,30]
[357667205,1744298241496,14325.18,0.00043809,60]
[357667206,1744298242306,257.91778498,0.00043809,30]
[357667207,1744298242960,267.46074303,0.00043809,30]
[357667208,1744298243603,277.35679052,0.00043809,30]
[357667209,1744298244402,287.61899177,0.00043809,30]
[357667210,1744298246713,298.26089446,0.00043809,30]
[357667211,1744298247157,309.29654756,0.00043809,30]
[357667212,1744298247816,320.74051982,0.00043809,30]
[357667213,1744298248522,332.60791905,0.00043809,30]
[357667214,1744298249162,344.91441206,0.00043809,30]
[357667215,1744298249810,357.6762453,0.00043809,30]
[357667216,1744298250443,370.91026638,0.00043809,30]
[357667217,1744298251079,384.63394623,0.00043809,30]
[357667218,1744298251790,384.63394623,0.00043809,30]
[357667219,1744298326231,513.48,0.00043809,30]
[357667221,1744298355726,1000.00214498,0.00043809,30]
[357667224,1744298452097,150.00028573,0.00043805,30]
[357667225,1744298490365,3000.0,0.00043805,120]
[357667226,1744298491591,3000.0,0.00043805,120]
[357667227,1744298510525,3509.49,0.00043805,30]
[357667229,1744298536463,200.0,0.00043805,120]
[357667230,1744298537130,207.4,0.00043805,120]
[357667231,1744298537778,215.0738,0.00043805,120]
[357667232,1744298538406,223.0315306,0.00043805,120]
[357667233,1744298539052,231.28369723,0.00043805,120]
[357667234,1744298539678,239.84119403,0.00043805,120]
[357667235,1744298540442,248.71531821,0.00043805,120]
[357667236,1744298541160,257.91778498,0.00043805,120]
[357667237,1744298541849,267.46074303,0.00043805,120]
[357667238,1744298542501,277.35679052,0.00043805,120]
[357667239,1744298543196,287.61899177,0.00043805,120]
[357667240,1744298543824,298.26089446,0.00043805,120]
[357667241,1744298544580,309.29654756,0.00043805,120]
[357667242,1744298545131,320.74051982,0.00043805,120]
[357667243,1744298546266,332.60791905,0.00043805,120]
[357667244,1744298546925,344.91441206,0.00043805,120]
[357667245,1744298547737,357.6762453,0.00043805,120]
[357667246,1744298548379,370.91026638,0.00043805,120]
[357667247,1744298549074,384.63394623,0.00043805,120]
[357667248,1744298549755,384.63394623,0.00043805,120]
[357667249,1744298714139,715.43584482,0.00043806,30]
[357667250,1744298781656,-1273.16,0.000154,2]
[357667251,1744298802045,-371.52,0.000154,2]
[357667252,1744298825144,-26.04726185,0.000154,2]
[357667253,1744298825165,-1359.91083815,0.00019,2]
[357667254,1744298835488,200.0,0.00043806,120]
[357667255,1744298836649,207.4,0.00043806,120]
[357667257,1744298837354,215.0738,0.00043806,120]
[357667258,1744298837993,223.0315306,0.00043806,120]
[357667259,1744298838754,231.28369723,0.00043806,120]
[357667260,1744298839090,-306.466146,0.00018905,2]
[357667261,1744298839113,-1908.84701699,0.00019,2]
[357667262,1744298839364,239.84119403,0.00043806,120]
[357667263,1744298840012,248.71531821,0.00043806,120]
[357667264,1744298840908,257.91778498,0.00043806,120]
[357667265,1744298841705,267.46074303,0.00043806,120]
[357667266,1744298842240,277.35679052,0.00043806,120]
[357667267,1744298842805,287.61899177,0.00043806,120]
[357667268,1744298843473,298.26089446,0.00043806,120]
[357667269,1744298844101,309.29654756,0.00043806,120]
[357667270,1744298844779,320.74051982,0.00043806,120]
[357667271,1744298845471,332.60791905,0.00043806,120]
[357667272,1744298846899,344.91441206,0.00043806,120]
[357667273,1744298847396,357.6762453,0.00043806,120]
[357667277,1744298848056,370.91026638,0.00043806,120]
[357667278,1744298848711,384.63394623,0.00043806,120]
[357667279,1744298849383,384.63394623,0.00043806,120]
[357667283,1744298884251,284488.16551499,0.00015,2]
[357667285,1744298916950,87297.1766961,0.0003499,120]
[357667286,1744298931941,1214.19078846,0.00010136,2]
[357667289,1744298949087,-9101.81329742,0.00019,2]
[357667290,1744298949108,-12662.22693811,0.000199,2]
[357667291,1744298949143,-1665.11273324,0.000199,2]
[357667292,1744298949165,-534.95088703,0.000199,2]
[357667293,1744298949186,-158.18007662,0.000199,2]
[357667294,1744298949206,-201.19030446,0.000199,2]
[357667295,1744298949226,-500.0,0.00019973,2]
[357667296,1744298949246,-500.0,0.00019973,2]
[357667297,1744298949266,-500.0,0.00019973,2]
[357667298,1744298949287,-250.0,0.00019999,2]
[357667299,1744298949308,-401.67218451,0.00019999,2]
[357667300,1744298949329,-500.0,0.00019999,2]
[357667301,1744298949350,-330.80552892,0.00019999,2]
[357667302,1744298949373,-302298.50088522,0.0002,2]
[357667303,1744298973088,-609.2083074,0.000199,2]
[357667311,1744299031923,-3186.83454304,0.000199,2]
[357667315,1744299032109,-1832.33656432,0.000199,2]
[357667316,1744299032119,-500.0,0.00019973,2]
[357667317,1744299032128,-500.0,0.00019973,2]
[357667318,1744299032138,-186.63,0.0001999,2]
[357667319,1744299032147,-186.63,0.0001999,2]
[357667320,1744299032157,-186.63,0.0001999,2]
[357667321,1744299032167,-186.63,0.0001999,2]
[357667322,1744299032177,-4106.14343568,0.0002,2]
[357667323,1744299032188,-3098.00000001,0.0002,2]
[357667324,1744299032199,-443.42,0.0002,2]
[357667325,1744299032977,-205.40799997,0.00019999,2]
[357667326,1744299032989,-75.76252918,0.00019999,2]
[357667327,1744299032999,-2637.45481423,0.0002,2]
[357667354,1744299038278,-400.0,0.000194,7]
[357667355,1744299038288,-158.18007662,0.000199,2]
[357667356,1744299038297,-7499.95190338,0.0002,2]
[357667357,1744299038321,-304.1558315,0.0002,2]
[357667359,1744299038577,-3104.61615231,0.0002,2]
[357667360,1744299038628,-2068.98266554,0.0002,2]
[357667361,1744299038639,-1808.89957957,0.0002,2]
[357667362,1744299038655,-5053.34184087,0.0002,2]
[357667363,1744299038666,-1522.92230631,0.0002,2]
[357667364,1744299038678,-655.50801149,0.0002,2]
[357667365,1744299038689,-706.25666656,0.0002,2]
[357667367,1744299038728,-134815.5656347,0.0002,2]
[357667369,1744299040316,-800.0,0.000195,7]
[357667370,1744299040326,-154.49060576,0.0001999,2]
[357667371,1744299040336,-154.49060576,0.0001999,2]
[357667372,1744299040346,-154.49060576,0.0001999,2]
[357667373,1744299040355,-2758.04568272,0.0002,2]
[357667376,1744299045158,-1200.0,0.000196,7]
[357667377,1744299045168,-1600.0,0.000197,7]
[357667380,1744299045178,-21044.20031213,0.0002,2]
[357667384,1744299045189,-2301052.47288169,0.0002,2]
[357667390,1744299045219,-24000.0,0.0002,2]
[357667394,1744299045280,-1710.80424011,0.0002,2]
[357667438,1744299045551,-15499.99999999,0.0002,2]
[357667441,1744299045563,-22227.63376704,0.0002,2]
[357667444,1744299045575,-80599.99999999,0.0002,2]
[357667451,1744299045610,-2631.37196674,0.0002,2]
[357667533,1744299046638,-30591.0,0.0002,2]
[357667535,1744299046699,-969.3399994,0.0002,2]
[357667536,1744299046711,-1482.32437961,0.0002,2]
[357667537,1744299046902,-246.14651615,0.0002,2]
[357667538,1744299046918,-1529.8000001,0.0002,2]
[357667539,1744299046930,-4000.0,0.0002,2]
[357667540,1744299046964,-1611.5,0.000198,7]
[357667541,1744299046983,-488.5,0.000198,7]
[357667542,1744299046992,-13738.16985331,0.0002,2]
[357667543,1744299047003,-2010.325,0.0002,2]
[357667547,1744299088419,207.00395781,0.00043806,30]
[357667549,1744299135601,200.0,0.00043806,120]
[357667550,1744299136269,207.4,0.00043806,120]
[357667551,1744299137133,215.0738,0.00043806,120]
[357667552,1744299137564,223.0315306,0.00043806,120]
[357667553,1744299138251,231.28369723,0.00043806,120]
[357667554,1744299138993,239.84119403,0.00043806,120]
[357667555,1744299139630,248.71531821,0.00043806,120]
[357667556,1744299140868,257.91778498,0.00043806,120]
[357667557,1744299141540,267.46074303,0.00043806,120]
[357667558,1744299142237,277.35679052,0.00043806,120]
[357667559,1744299142875,287.61899177,0.00043806,120]
[357667560,1744299144541,298.26089446,0.00043806,120]
[357667561,1744299145281,309.29654756,0.00043806,120]
[357667562,1744299145955,320.74051982,0.00043806,120]
[357667563,1744299147150,332.60791905,0.00043806,120]
[357667564,1744299147806,344.91441206,0.00043806,120]
[357667565,1744299148708,357.6762453,0.00043806,120]
[357667566,1744299149981,370.91026638,0.00043806,120]
[357667567,1744299150643,384.63394623,0.00043806,120]
[357667568,1744299151291,384.63394623,0.00043806,120]
[357667572,1744299433784,200.0,0.00043804,120]
[357667573,1744299434386,207.4,0.00043804,120]
[357667574,1744299435041,215.0738,0.00043804,120]
[357667575,1744299435685,223.0315306,0.00043804,120]
[357667576,1744299436315,231.28369723,0.00043804,120]
[357667577,1744299437077,239.84119403,0.00043804,120]
[357667578,1744299438159,248.71531821,0.00043804,120]
[357667579,1744299438816,257.91778498,0.00043804,120]
[357667580,1744299439453,267.46074303,0.00043804,120]
[357667581,1744299440104,277.35679052,0.00043804,120]
[357667582,1744299440828,287.61899177,0.00043804,120]
[357667583,1744299441402,298.26089446,0.00043804,120]
[357667584,1744299442661,309.29654756,0.00043804,120]
[357667585,1744299442984,320.74051982,0.00043804,120]
[357667586,1744299443437,332.60791905,0.00043804,120]
[357667587,1744299444156,344.91441206,0.00043804,120]
[357667588,1744299444777,357.6762453,0.00043804,120]
[357667589,1744299445452,370.91026638,0.00043804,120]
[357667590,1744299446189,384.63394623,0.00043804,120]
[357667591,1744299446911,384.63394623,0.00043804,120]
[357667597,1744299549699,50000.0,0.00043804,30]
[357667598,1744299556620,50000.0,0.00043804,31]
[357667603,1744299565006,50000.0,0.00043804,32]
[357667605,1744299568342,50000.0,0.00043804,33]
[357667606,1744299571848,50000.0,0.00043804,34]
[357667608,1744299691145,1067.0,0.0004381,30]
[357667609,1744299694838,1067.0,0.0004381,30]
[357667611,1744299733828,200.0,0.0004381,120]
[357667612,1744299734518,207.4,0.0004381,120]
[357667613,1744299735193,215.0738,0.0004381,120]
[357667614,1744299735846,223.0315306,0.0004381,120]
[357667616,1744299736805,231.28369723,0.0004381,120]
[357667617,1744299737210,239.84119403,0.0004381,120]
[357667618,1744299737883,248.71531821,0.0004381,120]
[357667619,1744299738526,257.91778498,0.0004381,120]
[357667620,1744299739367,267.46074303,0.0004381,120]
[357667621,1744299739973,277.35679052,0.0004381,120]
[357667622,1744299740918,287.61899177,0.0004381,120]
[357667623,1744299741289,298.26089446,0.0004381,120]
[357667624,1744299742165,309.29654756,0.0004381,120]
[357667625,1744299742748,320.74051982,0.0004381,120]
[357667626,1744299743404,332.60791905,0.0004381,120]
[357667627,1744299744221,344.91441206,0.0004381,120]
[357667630,1744299744871,357.6762453,0.0004381,120]
[357667631,1744299745536,370.91026638,0.0004381,120]
[357667632,1744299746169,384.63394623,0.0004381,120]
[357667633,1744299747103,384.63394623,0.0004381,120]
[357667639,1744299806632,3031.0,0.0004381,30]
[357667640,1744299813984,207.00395781,0.0004381,30]
[357667641,1744299839542,150.0,0.0004381,30]
[357667642,1744299842245,2000.0,0.0004381,120]
[357667643,1744299847422,357.23957454,0.0004381,60]
[357667644,1744299849226,413.0,0.0004381,120]
[357667646,1744299903176,447.0,0.0004381,120]
[357667647,1744299903266,459.02116118,0.0004381,120]
[357667648,1744299905851,1000.0,0.0004381,30]
[357667649,1744299905905,1000.0,0.0004381,30]
[357667650,1744299905964,1000.0,0.0004381,30]
[357667651,1744299906044,4425.0,0.0004381,31]
[357667652,1744299906377,8850.0,0.0004381,31]
[357667653,1744299906807,4425.0,0.0004381,31]
[357667654,1744299907000,1000.0,0.0004381,30]
[357667655,1744299907059,1000.0,0.0004381,30]
[357667656,1744299907109,1000.0,0.0004381,30]
[357667657,1744299907535,4425.0,0.0004381,31]
[357667658,1744299907978,4425.0,0.0004381,31]
[357667659,1744299910032,1000.0,0.0004381,30]
[357667660,1744299911037,1000.0,0.0004381,30]
[357667661,1744299911092,1000.0,0.0004381,30]
[357667662,1744299912067,1000.0,0.0004381,30]
[357667663,1744299912279,275.5858494,0.0004381,30]
[357667664,1744299912369,1000.0,0.0004381,30]
[357667665,1744299913064,1000.0,0.0004381,30]
[357667666,1744299913428,1000.0,0.0004381,30]
[357667667,1744299914199,1000.0,0.0004381,30]
[357667668,1744299914563,229.8668615,0.0004381,30]
[357667669,1744299915336,713.90726778,0.0004381,30]
[357667670,1744299945573,1000.0,0.0004381,30]
[357667671,1744299946185,1000.0,0.0004381,30]
[357667672,1744299946964,1000.0,0.0004381,30]
[357667673,1744299947607,1000.0,0.0004381,30]
[357667674,1744299948309,1000.0,0.0004381,30]
[357667675,1744299948913,1000.0,0.0004381,30]
[357667676,1744299949495,1000.0,0.0004381,30]
[357667677,1744299949975,1000.0,0.0004381,30]
[357667678,1744299950130,1000.0,0.0004381,30]
[357667679,1744299950707,1000.0,0.0004381,30]
[357667680,1744299951350,1000.0,0.0004381,30]
[357667681,1744299952073,1000.0,0.0004381,30]
[357667682,1744299952833,1000.0,0.0004381,30]
[357667683,1744299953419,1000.0,0.0004381,30]
[357667684,1744299953992,1000.0,0.0004381,30]
[357667685,1744299954964,1000.0,0.0004381,30]
[357667686,1744299955847,1000.0,0.0004381,30]
[357667687,1744299956424,1000.0,0.0004381,30]
[357667688,1744299957086,1000.0,0.0004381,30]
[357667689,1744299957661,1000.0,0.0004381,30]
[357667690,1744299958350,1000.0,0.0004381,30]
[357667691,1744299958937,214.00244918,0.0004381,30]
[357667692,1744299962782,1000.0,0.0004381,60]
[357667694,1744299970299,300.0,0.0004381,30]
[357667695,1744299972997,300.0,0.0004381,30]
[357667696,1744299976394,1000.0,0.0004381,30]
[357667697,1744299978973,300.0,0.0004381,30]
[357667698,1744299981069,-376.18934392,0.00018926,2]
[357667699,1744299981091,-250.0,0.00019,2]
[357667700,1744299981112,-376.18934392,0.00019181,2]
[357667701,1744299981134,-376.18934392,0.00019573,2]
[357667702,1744299981156,-1864.423,0.000196,2]
[357667703,1744299981181,-223.06016935,0.000199,2]
[357667704,1744299981201,-282.03150204,0.000199,2]
[357667705,1744299981224,-4458.65424918,0.000199,2]
[357667706,1744299981246,-1861.92298182,0.000199,2]
[357667707,1744299981267,-622.49181453,0.000199,2]
[357667708,1744299981289,-3752.25294318,0.000199,2]
[357667709,1744299981311,-201.19030446,0.000199,2]
[357667710,1744299981336,-376.18934393,0.00019953,2]
[357667711,1744299981358,-500.0,0.00019972,2]
[357667712,1744299981379,-566.09549997,0.00019972,2]
[357667713,1744299981568,-500.0,0.00019972,2]
[357667714,1744299981651,-500.0,0.00019972,2]
[357667715,1744299981672,-500.0,0.00019972,2]
[357667716,1744299981694,-500.0,0.00019972,2]
[357667717,1744299981716,-500.0,0.00019972,2]
[357667718,1744299981737,-500.0,0.00019972,2]
[357667719,1744299981759,-500.0,0.00019972,2]
[357667720,1744299981781,-500.0,0.00019972,2]
[357667721,1744299981803,-112604.64892022,0.00019973,2]
[357667722,1744299981827,-481.35223075,0.00019973,2]
[357667723,1744299981848,-299.77989282,0.00019999,2]
[357667724,1744299981870,-236527.33911599,0.0002,2]
[357667725,1744299987300,300.0,0.0004381,30]
[357667727,1744299988377,1000.0,0.0004381,30]
[357667728,1744299991707,300.0,0.0004381,30]
[357667731,1744299993232,3000.0,0.0004381,30]
[357667732,1744300001180,1000.0,0.0004381,60]
[357667733,1744300013670,2000.0,0.0004381,30]
[357667734,1744300013977,1000.0,0.0004381,30]
[357667735,1744300017444,300.0,0.0004381,30]
[357667736,1744300020592,2000.0,0.0004381,30]
[357667739,1744300026767,1000.0,0.0004381,30]
[357667740,1744300026967,151.0,0.0004381,120]
[357667741,1744300027687,151.0,0.0004381,120]
[357667742,1744300030000,425.94,0.0004381,30]
[357667743,1744300030210,500.0,0.0004381,120]
[357667744,1744300030453,2000.0,0.0004381,30]
[357667745,1744300031200,518.5,0.0004381,120]
[357667746,1744300031931,537.6845,0.0004381,120]
[357667747,1744300032528,557.5788265,0.0004381,120]
[357667748,1744300033198,578.20924308,0.0004381,120]
[357667749,1744300033784,599.60298507,0.0004381,120]
[357667750,1744300034558,621.78829552,0.0004381,120]
[357667751,1744300035029,644.79446246,0.0004381,120]
[357667752,1744300035091,-166.77332745,0.000199,2]
[357667753,1744300035116,-27.7514959,0.00019998,2]
[357667754,1744300035675,668.65185757,0.0004381,120]
[357667755,1744300036353,693.3919763,0.0004381,120]
[357667756,1744300036996,719.04747942,0.0004381,120]
[357667757,1744300037666,745.65223616,0.0004381,120]
[357667758,1744300038348,773.2413689,0.0004381,120]
[357667759,1744300038998,801.85129955,0.0004381,120]
[357667760,1744300039620,831.51979763,0.0004381,120]
[357667761,1744300039725,1000.0,0.0004381,120]
[357667762,1744300040712,862.28603014,0.0004381,120]
[357667763,1744300041013,1000.0,0.0004381,30]
[357667764,1744300041485,894.19061326,0.0004381,120]
[357667765,1744300042165,894.19061326,0.0004381,120]
[357667766,1744300048655,5000.0,0.0004381,30]
[357667767,1744300048782,2000.0,0.0004381,30]
[357667768,1744300048842,200.0,0.0004381,120]
[357667769,1744300049448,207.4,0.0004381,120]
[357667770,1744300050091,215.0738,0.0004381,120]
[357667771,1744300051106,223.0315306,0.0004381,120]
[357667772,1744300051502,231.28369723,0.0004381,120]
[357667773,1744300052106,-272.2485041,0.00019998,2]
[357667774,1744300052129,-1109.04831123,0.00019999,5]
[357667775,1744300052151,-808.89970238,0.00019999,5]
[357667776,1744300052204,239.84119403,0.0004381,120]
[357667777,1744300052514,1000.0,0.0004381,30]
[357667778,1744300052832,248.71531821,0.0004381,120]
[357667779,1744300053484,257.91778498,0.0004381,120]
[357667780,1744300054168,267.46074303,0.0004381,120]
[357667781,1744300054808,277.35679052,0.0004381,120]
[357667782,1744300055455,287.61899177,0.0004381,120]
[357667783,1744300056130,298.26089446,0.0004381,120]
[357667784,1744300056778,309.29654756,0.0004381,120]
[357667785,1744300057432,320.74051982,0.0004381,120]
[357667786,1744300058097,332.60791905,0.0004381,120]
[357667787,1744300058743,344.91441206,0.0004381,120]
[357667788,1744300059399,357.6762453,0.0004381,120]
[357667789,1744300060030,370.91026638,0.0004381,120]
[357667790,1744300060706,384.63394623,0.0004381,120]
[357667791,1744300061893,384.63394623,0.0004381,120]
[357667792,1744300062317,2000.0,0.0004381,30]
[357667793,1744300066158,1000.0,0.0004381,30]
[357667794,1744300070761,500.0,0.0004381,30]
[357667795,1744300078978,1000.0,0.0004381,30]
[357667796,1744300081248,10000.0,0.0004381,30]
[357667798,1744300091742,1000.0,0.0004381,30]
[357667799,1744300104536,1000.0,0.0004381,60]
[357667800,1744300105499,2209.4,0.0004381,60]
[357667802,1744300115137,158.49348593,0.0004381,120]
[357667806,1744300117135,158.49348589,0.0004381,120]
[357667807,1744300117349,1000.0,0.0004381,30]
[357667810,1744300118128,158.49348589,0.0004381,120]
[357667811,1744300119131,158.49348589,0.0004381,120]
[357667812,1744300120127,158.49348589,0.0004381,120]
[357667813,1744300130130,1000.0,0.0004381,30]
[357667814,1744300142936,1000.0,0.0004381,60]
[357667816,1744300146950,192.0757526,0.0004381,60]
[357667817,1744300148410,-2501.50196212,0.000199,2]
[357667818,1744300148431,-300.14860885,0.00019999,5]
[357667819,1744300148453,-1109.04831122,0.00019999,5]
[357667820,1744300148476,-216.41872496,0.00019999,2]
[357667821,1744300148499,-300.0,0.00019999,2]
[357667822,1744300148521,-562.8995,0.00019999,2]
[357667823,1744300148543,-13058.59544563,0.0002,2]
[357667824,1744300153144,-43883.73654,0.0002,2]
[357667825,1744300155742,1000.0,0.0004381,30]
[357667826,1744300160095,-4512.30128175,0.0002,2]
[357667827,1744300168694,1000.0,0.0004381,30]
[357667828,1744300172092,-6156.114216,0.0002,2]
[357667829,1744300174092,-278727.74500413,0.0002,2]
[357667831,1744300181323,1000.0,0.0004381,30]
[357667833,1744300194272,1000.0,0.00043795,60]
[357667835,1744300207068,1000.0,0.00043795,30]
[357667836,1744300211172,50000.0,0.00043795,30]
[357667837,1744300218818,50000.0,0.00043795,31]
[357667838,1744300219858,1000.0,0.00043795,60]
[357667839,1744300222031,50000.0,0.00043795,32]
[357667840,1744300224953,50000.0,0.00043795,33]
[357667841,1744300228420,50000.0,0.00043795,34]
[357667850,1744300232651,-1667.66797474,0.000199,2]
[357667851,1744300232660,-2280.03202526,0.0002,2]
[357667853,1744300232671,-442.4616,0.0002,2]
[357667856,1744300232682,-6873.11804278,0.0002,2]
[357667859,1744300232705,-624.43192557,0.0002,2]
[357667861,1744300232716,-360.000006,0.0002,2]
[357667863,1744300232727,-31700.94081275,0.0002,2]
[357667866,1744300232740,-5969.04656628,0.0002,2]
[357667870,1744300232770,-2100.16212202,0.0002,2]
[357667872,1744300232784,-39642.50000001,0.0002,2]
[357667878,1744300232839,1000.0,0.00043795,30]
[357667962,1744300238468,-178.9493,0.000199,2]
[357667963,1744300238477,-403.79329558,0.0002,2]
[357667964,1744300238489,-310.81597538,0.0002,2]
[357667965,1744300238602,-160000.0,0.0002,2]
[357667966,1744300238614,-9894.670197,0.0002,2]
[357667967,1744300238626,-1486.98284411,0.0002,2]
[357667968,1744300238637,-970.94044122,0.0002,2]
[357667969,1744300238649,-1392.16537012,0.0002,2]
[357667970,1744300238661,-356.87749713,0.0002,2]
[357667971,1744300238672,-501.18323825,0.0002,2]
[357667972,1744300238686,-27665.54659937,0.0002,2]
[357667973,1744300238697,-2191.18000002,0.0002,2]
[357667974,1744300238708,-587.94758794,0.0002,2]
[357667987,1744300238853,-12413.69307293,0.0002,2]
[357667991,1744300238892,-330.0,0.0002,2]
[357667993,1744300238904,-396.63,0.0002,2]
[357667995,1744300238915,-757.45,0.0002,2]
[357668123,1744300240394,-2301052.47288169,0.0002,2]
[357668144,1744300240572,-7966.9,0.0002,2]
[357668146,1744300240584,-5333.43661568,0.0002,2]
[357668148,1744300240596,-69997.67999999,0.0002,2]
[357668150,1744300240607,-3941.4375,0.0002,2]
[357668152,1744300240618,-1520.61910004,0.0002,2]
[357668159,1744300240678,-47636.28772569,0.0002,2]
[357668171,1744300240778,-1191.78247956,0.0002,2]
[357668264,1744300241710,-12.5976,0.0002,2]
[357668266,1744300241725,-2033.16284208,0.0002,2]
[357668434,1744300243430,-18002.38154707,0.0002,2]
[357668437,1744300243442,-39720.18624607,0.0002,2]
[357668439,1744300243454,-2624.23014697,0.0002,2]
[357668444,1744300243495,-253.96106634,0.0002,2]
[357668530,1744300244348,-306.85825155,0.0002,2]
[357668531,1744300244360,-74383.57875159,0.0002,2]
[357668532,1744300244372,-3528.90730559,0.0002,2]
[357668533,1744300244399,-342479.03887354,0.0002,2]
[357668535,1744300244411,-2191.19704672,0.0002,2]
[357668537,1744300244423,-6963.17324443,0.0002,2]
[357668618,1744300245480,1000.0,0.00043795,30]
[357668629,1744300246461,-2301.61185273,0.0002,2]
[357668630,1744300246473,-2662.90597901,0.0002,2]
[357668631,1744300246484,-513.19268,0.0002,2]
[357668632,1744300246496,-558.696,0.0002,2]
[357668633,1744300246507,-1593.5,0.0002,2]
[357668634,1744300246519,-10049.35777222,0.0002,2]
[357668635,1744300246531,-1669.57234479,0.0002,2]
[357668636,1744300246546,-3945.25,0.0002,2]
[357668729,1744300259664,-1296.23729483,0.0002,2]
[357668730,1744300259676,-2380.91245679,0.0002,2]
[357668731,1744300259687,-413.7197021,0.0002,2]
[357668732,1744300259698,-480.6600008,0.0002,2]
[357668733,1744300259709,-1062.0,0.0002,2]
[357668734,1744300259722,-1529.47550624,0.0002,2]
[357668735,1744300259735,-9988.11395034,0.0002,2]
[357668736,1744300259823,-52203.82127111,0.0002,2]
[357668737,1744300259833,-595.33353012,0.0002,2]
[357668738,1744300259842,-2694.7770869,0.0002,4]
[357668739,1744300259854,-8333.246401,0.0002,4]
[357668740,1744300259864,-2000.0,0.0002,4]
[357668741,1744300259873,-151.6,0.0002,2]
[357668742,1744300259883,-151.6,0.0002,2]
[357668743,1744300259892,-151.6,0.0002,2]
[357668744,1744300259902,-151.6,0.0002,2]
[357668745,1744300259911,-151.6,0.0002,2]
[357668746,1744300259920,-151.6,0.0002,2]
[357668747,1744300259929,-151.6,0.0002,2]
[357668748,1744300259939,-151.6,0.0002,2]
[357668749,1744300259948,-2254.46411694,0.0002001,2]
[357668750,1744300259958,-280.95104296,0.0002001,2]
[357668751,1744300259967,-1087.43,0.00020063,2]
[357668752,1744300259976,-200.0,0.00020101,2]
[357668753,1744300259986,-445.3,0.00020331,2]
[357668754,1744300259995,-386.81,0.00020331,2]